[Event "NJSK 2018 Jeugd A"]
[Site "Assen, Netherlands"]
[Date "2018.05.05"]
[Round "7.4"]
[White "Mesman, Edwyn"]
[Black "Van Baar, Esper"]
[Result "0-1"]
[TimeControl "40/90m+30m+30sec/move"]
[WhiteElo "2082"]
[BlackElo "2237"]

1. d4 {[%clk 01:30:49]} {[%emt 00:00:51]} d6 {[%clk 01:30:52]} {[%emt
00:00:16]} 2. Bf4 {[%clk 01:29:59]} {[%emt 00:01:45]} Nf6 {[%clk 01:26:43]}
{[%emt 00:04:50]} 3. e3 {[%clk 01:29:12]} {[%emt 00:00:54]} g6 {[%clk
01:25:48]} {[%emt 00:00:42]} 4. Nf3 {[%clk 01:29:36]} {[%emt 00:00:02]} Bg7
{[%clk 01:25:49]} {[%emt 00:00:14]} 5. Be2 {[%clk 01:29:55]} {[%emt 00:00:12]}
O-O {[%clk 01:26:02]} {[%emt 00:00:17]} 6. h3 {[%clk 01:30:21]} {[%emt
00:00:03]} c5 {[%clk 01:26:27]} {[%emt 00:00:05]} 7. Nbd2 {[%clk 01:30:35]}
{[%emt 00:00:17]} b6 {[%clk 01:24:28]} {[%emt 00:02:28]} 8. O-O {[%clk
01:29:39]} {[%emt 00:01:25]} Bb7 {[%clk 01:24:40]} {[%emt 00:00:19]} 9. c3
{[%clk 01:29:56]} {[%emt 00:00:13]} Nbd7 {[%clk 01:24:05]} {[%emt 00:01:05]} 10.
a4 {[%clk 01:30:19]} {[%emt 00:00:07]} a6 {[%clk 01:24:21]} {[%emt 00:00:15]}
11. Bh2 {[%clk 01:30:40]} {[%emt 00:00:09]} Ra7 {[%clk 01:24:34]} {[%emt
00:00:17]} 12. b4 {[%clk 01:25:58]} {[%emt 00:05:11]} cxb4 {[%clk 01:18:57]}
{[%emt 00:06:11]} 13. cxb4 {[%clk 01:26:13]} {[%emt 00:00:11]} Qa8 {[%clk
01:19:02]} {[%emt 00:00:25]} 14. Qb3 {[%clk 01:19:04]} {[%emt 00:07:39]} Rc8
{[%clk 01:13:51]} {[%emt 00:05:41]} 15. Rac1 {[%clk 01:14:40]} {[%emt
00:04:54]} Bd5 {[%clk 01:08:27]} {[%emt 00:05:54]} 16. Bc4 {[%clk 00:54:02]}
{[%emt 00:21:09]} Rac7 {[%clk 01:03:40]} {[%emt 00:05:17]} 17. Bxd5 {[%clk
00:43:42]} {[%emt 00:10:50]} Qxd5 {[%clk 01:03:58]} 18. Qb2 {[%clk 00:43:59]}
{[%emt 00:00:24]} b5 {[%clk 01:00:48]} {[%emt 00:03:41]} 19. axb5 {[%clk
00:41:19]} {[%emt 00:03:10]} axb5 {[%clk 00:58:52]} {[%emt 00:02:27]} 20. Rxc7
{[%clk 00:29:47]} {[%emt 00:12:02]} Rxc7 {[%clk 00:59:17]} {[%emt 00:00:04]} 21.
Rc1 {[%clk 00:30:01]} {[%emt 00:00:15]} Qb7 {[%clk 00:57:42]} {[%emt 00:02:07]}
22. Bg3 {[%clk 00:28:37]} {[%emt 00:01:53]} Nb6 {[%clk 00:56:26]} {[%emt
00:01:46]} 23. Rxc7 {[%clk 00:26:26]} {[%emt 00:02:42]} Qxc7 {[%clk 00:56:43]}
{[%emt 00:00:13]} 24. Qa2 {[%clk 00:26:34]} {[%emt 00:00:21]} Na4 {[%clk
00:41:39]} {[%emt 00:15:34]} 25. Ng5 {[%clk 00:21:10]} {[%emt 00:05:54]} Qc1+
{[%clk 00:39:27]} {[%emt 00:02:45]} 26. Kh2 {[%clk 00:15:38]} {[%emt 00:06:02]}
d5 {[%clk 00:39:45]} {[%emt 00:00:08]} 27. Ngf3 {[%clk 00:13:33]} {[%emt
00:02:35]} Qc3 {[%clk 00:34:40]} {[%emt 00:05:35]} 28. Be5 {[%clk 00:08:52]}
{[%emt 00:05:10]} Qxb4 {[%clk 00:31:26]} {[%emt 00:03:43]} 29. Bxf6 {[%clk
00:08:24]} {[%emt 00:00:58]} Bxf6 {[%clk 00:31:43]} {[%emt 00:00:12]} 30. Qxd5
{[%clk 00:08:49]} {[%emt 00:00:06]} Qd6 {[%clk 00:30:25]} {[%emt 00:01:48]} 31.
Qxd6 {[%clk 00:08:55]} {[%emt 00:00:21]} exd6 {[%clk 00:30:54]} {[%emt
00:00:04]} 32. e4 {[%clk 00:08:58]} {[%emt 00:00:28]} Nc3 {[%clk 00:29:21]}
{[%emt 00:02:03]} 33. e5 {[%clk 00:08:14]} {[%emt 00:01:15]} dxe5 {[%clk
00:29:23]} {[%emt 00:00:26]} 34. dxe5 {[%clk 00:08:11]} {[%emt 00:00:33]} Be7
{[%clk 00:28:43]} {[%emt 00:01:09]} 35. Nb3 {[%clk 00:08:04]} {[%emt 00:00:41]}
Ba3 {[%clk 00:28:12]} {[%emt 00:00:57]} 36. Nfd4 {[%clk 00:07:21]} {[%emt
00:01:14]} Bb2 {[%clk 00:26:11]} {[%emt 00:02:35]} 37. Kg3 {[%clk 00:06:34]}
{[%emt 00:01:13]} Ne4+ {[%clk 00:24:42]} {[%emt 00:01:59]} 38. Kf3 {[%clk
00:02:16]} {[%emt 00:04:47]} Nd2+ {[%clk 00:25:05]} {[%emt 00:00:07]} 39. Nxd2
{[%clk 00:02:08]} {[%emt 00:00:39]} Bxd4 {[%clk 00:25:29]} {[%emt 00:00:05]} 40.
Nb3 {[%clk 00:02:20]} {[%emt 00:00:19]} Bxe5 {[%clk 00:25:28]} {[%emt
00:00:30]} 41. Ke4 {[%clk 00:02:17]} {[%emt 00:00:32]} Bc3 {[%clk 00:21:27]}
{[%emt 00:04:32]} 42. Kd5 {[%clk 00:30:03]} {[%emt 00:02:45]} Kg7 {[%clk
00:49:36]} {[%emt 00:02:21]} 43. Nc5 {[%clk 00:27:41]} {[%emt 00:02:50]} f5
{[%clk 00:32:49]} {[%emt 00:17:20]} 44. Nd3 {[%clk 00:22:26]} {[%emt 00:05:44]}
Kf6 {[%clk 00:33:07]} {[%emt 00:00:12]} 45. Kc5 {[%clk 00:21:39]} {[%emt
00:01:17]} Ke6 {[%clk 00:30:19]} {[%emt 00:03:20]} 46. Kxb5 {[%clk 00:07:22]}
{[%emt 00:14:46]} Kd5 {[%clk 00:29:43]} {[%emt 00:01:06]} 47. Nf4 {[%clk
00:07:06]} {[%emt 00:00:47]} Ke4 {[%clk 00:22:35]} {[%emt 00:07:38]} 48. Kc4
{[%clk 00:07:09]} {[%emt 00:00:27]} Bd4 {[%clk 00:20:57]} {[%emt 00:02:07]} 49.
Ne6 {[%clk 00:04:05]} {[%emt 00:03:34]} Bxf2 {[%clk 00:20:51]} {[%emt
00:00:37]} 50. Ng5 {[%clk 00:04:12]} {[%emt 00:00:22]} Kf4 {[%clk 00:19:34]}
{[%emt 00:01:46]} 51. Nxh7 {[%clk 00:04:35]} {[%emt 00:00:07]} Bh4 {[%clk
00:17:43]} {[%emt 00:02:22]} 52. Nf8 {[%clk 00:02:02]} {[%emt 00:03:03]} Kg5
{[%clk 00:16:32]} {[%emt 00:01:40]} 53. Kd5 {[%clk 00:01:30]} {[%emt 00:01:02]}
Kf6 {[%clk 00:14:31]} {[%emt 00:02:34]} 54. Nd7+ {[%clk 00:01:51]} {[%emt
00:00:07]} Kg5 {[%clk 00:14:42]} {[%emt 00:00:19]} 55. Nf8 {[%clk 00:00:59]}
{[%emt 00:01:22]} Be1 {[%clk 00:14:25]} {[%emt 00:00:47]} 56. Kd4 {[%clk
00:00:54]} {[%emt 00:00:35]} Bb4 {[%clk 00:14:19]} {[%emt 00:00:35]} 57. Ne6+
{[%clk 00:00:40]} {[%emt 00:00:45]} Kh4 {[%clk 00:14:44]} {[%emt 00:00:04]} 58.
Nf4 {[%clk 00:00:35]} {[%emt 00:00:36]} g5 {[%clk 00:15:08]} {[%emt 00:00:06]}
59. Ne2 {[%clk 00:00:56]} {[%emt 00:00:09]} Bd6 {[%clk 00:12:26]} {[%emt
00:03:11]} 60. Ke3 {[%clk 00:00:50]} {[%emt 00:00:35]} Bc5+ {[%clk 00:12:52]}
{[%emt 00:00:05]} 0-1

[Event "NJSK 2018 Jeugd A"]
[Site "Assen, Netherlands"]
[Date "2018.05.05"]
[Round "7.5"]
[White "Bekedam, Tyro"]
[Black "Nguyen, Kevin"]
[Result "1-0"]
[TimeControl "40/90m+30m+30sec/move"]
[WhiteElo "1955"]
[BlackElo "2122"]

1. e4 {[%clk 01:30:54]} {[%emt 00:00:15]} c5 {[%clk 01:30:57]} {[%emt
00:00:24]} 2. Nf3 {[%clk 01:31:16]} {[%emt 00:00:23]} g6 {[%clk 01:31:25]}
{[%emt 00:00:05]} 3. d4 {[%clk 01:31:42]} {[%emt 00:00:07]} cxd4 {[%clk
01:31:52]} {[%emt 00:00:05]} 4. Nxd4 {[%clk 01:32:07]} {[%emt 00:00:06]} Nc6
{[%clk 01:32:20]} {[%emt 00:00:04]} 5. Nc3 {[%clk 01:32:25]} {[%emt 00:00:17]}
Bg7 {[%clk 01:32:46]} {[%emt 00:00:05]} 6. Be3 {[%clk 01:32:46]} {[%emt
00:00:12]} Nf6 {[%clk 01:33:13]} {[%emt 00:00:02]} 7. Bc4 {[%clk 01:32:57]}
{[%emt 00:00:22]} d6 {[%clk 01:33:41]} {[%emt 00:00:02]} 8. f3 {[%clk
01:31:26]} {[%emt 00:02:19]} Bd7 {[%clk 01:34:04]} {[%emt 00:00:14]} 9. Qd2
{[%clk 01:30:49]} {[%emt 00:01:08]} O-O {[%clk 01:34:30]} {[%emt 00:00:10]} 10.
O-O-O {[%clk 01:31:02]} {[%emt 00:00:13]} Rb8 {[%clk 01:34:53]} {[%emt
00:00:08]} 11. g4 {[%clk 01:30:27]} {[%emt 00:00:51]} Na5 {[%clk 01:33:13]}
{[%emt 00:01:31]} 12. Bb3 {[%clk 01:29:55]} {[%emt 00:00:20]} b5 {[%clk
01:33:35]} {[%emt 00:00:05]} 13. g5 {[%clk 01:24:52]} {[%emt 00:05:33]} Nh5
{[%clk 01:28:45]} {[%emt 00:05:19]} 14. f4 {[%clk 01:10:59]} {[%emt 00:14:26]}
b4 {[%clk 01:28:00]} {[%emt 00:01:14]} 15. Nce2 {[%clk 01:08:44]} {[%emt
00:02:44]} Nxb3+ {[%clk 01:27:45]} {[%emt 00:00:45]} 16. cxb3 {[%clk 01:07:03]}
{[%emt 00:02:12]} e5 {[%clk 01:21:20]} {[%emt 00:06:54]} 17. fxe5 {[%clk
00:44:13]} {[%emt 00:23:20]} dxe5 {[%clk 01:21:15]} {[%emt 00:00:36]} 18. Nc2
{[%clk 00:39:34]} {[%emt 00:05:09]} Bc6 {[%clk 01:21:05]} {[%emt 00:00:40]} 19.
Bxa7 {[%clk 00:38:41]} {[%emt 00:01:23]} Qxd2+ {[%clk 01:15:12]} {[%emt
00:06:22]} 20. Rxd2 {[%clk 00:35:41]} {[%emt 00:03:31]} Rb7 {[%clk 01:15:20]}
{[%emt 00:00:22]} 21. Bc5 {[%clk 00:35:04]} {[%emt 00:01:06]} Rc8 {[%clk
01:15:22]} {[%emt 00:00:28]} 22. Rhd1 {[%clk 00:35:15]} {[%emt 00:00:19]} Rbb8
{[%clk 01:07:04]} {[%emt 00:08:49]} 23. Bxb4 {[%clk 00:31:45]} {[%emt
00:04:01]} Bxe4 {[%clk 00:58:53]} {[%emt 00:08:40]} 24. Bd6 {[%clk 00:31:34]}
{[%emt 00:00:40]} Ra8 {[%clk 00:58:44]} {[%emt 00:00:39]} 25. Nc3 {[%clk
00:31:53]} {[%emt 00:00:10]} Bf3 {[%clk 00:58:26]} {[%emt 00:00:49]} 26. Re1
{[%clk 00:31:21]} {[%emt 00:01:01]} e4 {[%clk 00:57:13]} {[%emt 00:01:45]} 27.
a4 {[%clk 00:22:26]} {[%emt 00:09:24]} f5 {[%clk 00:57:08]} {[%emt 00:00:34]}
28. gxf6 {[%clk 00:22:09]} {[%emt 00:00:47]} Bxf6 {[%clk 00:55:09]} {[%emt
00:02:30]} 29. Kb1 {[%clk 00:17:19]} {[%emt 00:05:19]} Bh4 {[%clk 00:51:23]}
{[%emt 00:04:16]} 30. Rg1 {[%clk 00:16:25]} {[%emt 00:01:25]} Rd8 {[%clk
00:49:30]} {[%emt 00:02:25]} 31. Nb5 {[%clk 00:13:30]} {[%emt 00:03:23]} Nf6
{[%clk 00:28:42]} {[%emt 00:21:17]} 32. Ne3 {[%clk 00:10:34]} {[%emt 00:03:28]}
Ne8 {[%clk 00:19:41]} {[%emt 00:09:31]} 33. Nf5 {[%clk 00:06:49]} {[%emt
00:04:15]} Nxd6 {[%clk 00:17:06]} {[%emt 00:03:05]} 34. Nxh4 {[%clk 00:05:43]}
{[%emt 00:01:36]} Nxb5 {[%clk 00:17:06]} {[%emt 00:00:31]} 35. Nxf3 {[%clk
00:05:48]} {[%emt 00:00:24]} exf3 {[%clk 00:16:15]} {[%emt 00:01:21]} 36. Rxd8+
{[%clk 00:06:13]} {[%emt 00:00:05]} Rxd8 {[%clk 00:16:42]} {[%emt 00:00:05]} 37.
axb5 {[%clk 00:06:39]} {[%emt 00:00:02]} Kg7 {[%clk 00:11:01]} {[%emt
00:06:11]} 38. b6 {[%clk 00:06:05]} {[%emt 00:01:04]} Kh6 {[%clk 00:06:15]}
{[%emt 00:05:15]} 39. Rf1 {[%clk 00:06:14]} {[%emt 00:00:21]} Rf8 {[%clk
00:06:29]} {[%emt 00:00:17]} 40. b7 {[%clk 00:06:37]} {[%emt 00:00:06]} g5
{[%clk 00:06:37]} {[%emt 00:00:23]} 41. Rxf3 {[%clk 00:06:58]} {[%emt
00:00:11]} Rb8 {[%clk 00:06:07]} {[%emt 00:00:59]} 42. Rf7 {[%clk 00:06:08]}
{[%emt 00:01:19]} Kg6 {[%clk 00:06:33]} {[%emt 00:00:04]} 43. Rc7 {[%clk
00:06:14]} {[%emt 00:00:23]} h5 {[%clk 00:06:55]} {[%emt 00:00:10]} 44. Kc2
{[%clk 00:06:00]} {[%emt 00:00:42]} Kf5 {[%clk 00:07:20]} {[%emt 00:00:06]} 45.
Rh7 {[%clk 00:00:34]} {[%emt 00:05:54]} Kg6 {[%clk 00:05:44]} {[%emt 00:02:08]}
46. Rc7 {[%clk 00:00:53]} {[%emt 00:00:10]} Kf5 {[%clk 00:06:10]} {[%emt
00:00:03]} 47. Kc3 {[%clk 00:29:29]} {[%emt 00:01:57]} Kg4 {[%clk 00:35:57]}
{[%emt 00:00:41]} 48. Rg7 {[%clk 00:29:41]} {[%emt 00:00:17]} Kh3 {[%clk
00:27:27]} {[%emt 00:09:00]} 49. Rxg5 {[%clk 00:29:30]} {[%emt 00:00:54]} h4
{[%clk 00:27:53]} 50. Rg7 {[%clk 00:29:07]} {[%emt 00:00:44]} Kxh2 {[%clk
00:28:19]} {[%emt 00:00:05]} 51. Kc4 {[%clk 00:29:10]} {[%emt 00:00:27]} h3
{[%clk 00:27:59]} {[%emt 00:00:49]} 52. Kc5 {[%clk 00:29:36]} {[%emt 00:00:05]}
Rh8 {[%clk 00:27:27]} {[%emt 00:01:02]} 53. Rc7 {[%clk 00:28:09]} {[%emt
00:01:57]} Kg1 {[%clk 00:26:06]} {[%emt 00:01:51]} 54. Rc8 {[%clk 00:28:18]}
{[%emt 00:00:23]} Rh5+ {[%clk 00:26:30]} {[%emt 00:00:05]} 55. Kb4 {[%clk
00:28:03]} {[%emt 00:00:46]} 1-0

[Event "NJSK 2018 Jeugd A"]
[Site "Assen, Netherlands"]
[Date "2018.05.05"]
[Round "7.6"]
[White "Kanbier, Max"]
[Black "Van Hoorn, Geert"]
[Result "1-0"]
[TimeControl "40/90m+30m+30sec/move"]
[WhiteElo "1857"]
[BlackElo "2008"]

1. c4 {[%clk 01:30:58]} {[%emt 00:00:07]} Nf6 {[%clk 01:30:53]} {[%emt
00:00:38]} 2. Nc3 {[%clk 01:31:24]} {[%emt 00:00:12]} g6 {[%clk 01:31:13]}
{[%emt 00:00:16]} 3. d4 {[%clk 01:30:50]} {[%emt 00:01:22]} d5 {[%clk
01:30:45]} {[%emt 00:01:10]} 4. cxd5 {[%clk 01:31:13]} {[%emt 00:00:05]} Nxd5
{[%clk 01:31:05]} {[%emt 00:00:09]} 5. e4 {[%clk 01:31:39]} {[%emt 00:00:04]}
Nxc3 {[%clk 01:31:05]} {[%emt 00:00:33]} 6. bxc3 {[%clk 01:32:02]} {[%emt
00:00:11]} Bg7 {[%clk 01:30:56]} {[%emt 00:00:51]} 7. Bc4 {[%clk 01:31:09]}
{[%emt 00:01:17]} c5 {[%clk 01:30:39]} {[%emt 00:00:39]} 8. Be3 {[%clk
01:31:14]} {[%emt 00:00:19]} Nc6 {[%clk 01:30:44]} {[%emt 00:00:22]} 9. Ne2
{[%clk 01:31:22]} {[%emt 00:00:12]} O-O {[%clk 01:29:33]} {[%emt 00:00:48]} 10.
O-O {[%clk 01:30:55]} {[%emt 00:00:43]} Na5 {[%clk 01:29:00]} {[%emt 00:01:04]}
11. Bd3 {[%clk 01:30:50]} {[%emt 00:00:34]} Qc7 {[%clk 01:27:13]} {[%emt
00:02:17]} 12. Rc1 {[%clk 01:28:36]} {[%emt 00:02:45]} Rd8 {[%clk 01:26:33]}
{[%emt 00:01:10]} 13. f4 {[%clk 01:25:57]} {[%emt 00:03:08]} Bg4 {[%clk
01:25:17]} {[%emt 00:01:46]} 14. h3 {[%clk 01:25:07]} {[%emt 00:01:21]} Bxe2
{[%clk 01:24:54]} {[%emt 00:00:53]} 15. Qxe2 {[%clk 01:25:28]} {[%emt
00:00:08]} cxd4 {[%clk 01:23:57]} {[%emt 00:01:29]} 16. cxd4 {[%clk 01:25:29]}
{[%emt 00:00:28]} Qd6 {[%clk 01:20:33]} {[%emt 00:03:54]} 17. e5 {[%clk
01:21:42]} {[%emt 00:04:17]} Qa3 {[%clk 01:18:14]} {[%emt 00:02:49]} 18. f5
{[%clk 01:12:05]} {[%emt 00:10:07]} Bxe5 {[%clk 01:16:58]} {[%emt 00:01:46]} 19.
fxg6 {[%clk 01:12:26]} {[%emt 00:00:08]} fxg6 {[%clk 01:04:10]} {[%emt
00:13:26]} 20. Bc4+ {[%clk 01:11:14]} {[%emt 00:01:34]} Nxc4 {[%clk 01:04:25]}
{[%emt 00:00:15]} 21. Qxc4+ {[%clk 01:11:35]} {[%emt 00:00:09]} Kh8 {[%clk
01:04:42]} {[%emt 00:00:13]} 22. Rc3 {[%clk 01:11:43]} {[%emt 00:00:22]} Qa5
{[%clk 00:52:08]} {[%emt 00:13:04]} 23. dxe5 {[%clk 01:12:04]} {[%emt
00:00:09]} Rac8 {[%clk 00:52:20]} {[%emt 00:00:17]} 24. Qxc8 {[%clk 01:12:08]}
{[%emt 00:00:27]} Rxc8 {[%clk 00:52:44]} {[%emt 00:00:06]} 25. Rxc8 {[%clk
01:12:34]} {[%emt 00:00:04]} Kg7 {[%clk 00:53:02]} {[%emt 00:00:12]} 26. Rcf8
{[%clk 01:12:46]} {[%emt 00:00:18]} g5 {[%clk 00:50:53]} {[%emt 00:02:40]} 27.
R8f7+ {[%clk 01:06:36]} {[%emt 00:06:40]} Kg8 {[%clk 00:47:56]} {[%emt
00:03:26]} 28. Bxg5 {[%clk 01:06:01]} {[%emt 00:01:05]} Qxe5 {[%clk 00:46:34]}
{[%emt 00:01:52]} 29. Bh6 {[%clk 01:06:12]} {[%emt 00:00:20]} Qe3+ {[%clk
00:45:01]} {[%emt 00:02:03]} 30. Bxe3 {[%clk 01:06:35]} {[%emt 00:00:08]} 1-0

[Event "NJSK 2018 Jeugd A"]
[Site "Assen, Netherlands"]
[Date "2018.05.05"]
[Round "7.7"]
[White "Reichardt, Robin"]
[Black "Van der Werf, Joel"]
[Result "1/2-1/2"]
[TimeControl "40/90m+30m+30sec/move"]
[WhiteElo "1936"]
[BlackElo "1842"]

1. d4 {[%clk 01:30:57]} {[%emt 00:00:10]} d5 {[%clk 01:30:57]} {[%emt
00:00:15]} 2. Nf3 {[%clk 01:30:49]} {[%emt 00:01:20]} Nf6 {[%clk 01:31:22]}
{[%emt 00:00:07]} 3. c4 {[%clk 01:31:12]} {[%emt 00:00:10]} e6 {[%clk
01:31:47]} {[%emt 00:00:06]} 4. Bg5 {[%clk 01:30:30]} {[%emt 00:01:28]} c6
{[%clk 01:31:08]} {[%emt 00:01:14]} 5. Nbd2 {[%clk 01:29:00]} {[%emt 00:02:04]}
h6 {[%clk 01:31:13]} {[%emt 00:00:22]} 6. Bh4 {[%clk 01:26:31]} {[%emt
00:01:57]} Be7 {[%clk 01:30:22]} {[%emt 00:00:53]} 7. e3 {[%clk 01:25:37]}
{[%emt 00:01:24]} Nbd7 {[%clk 01:30:10]} {[%emt 00:00:42]} 8. Be2 {[%clk
01:25:15]} {[%emt 00:00:53]} O-O {[%clk 01:30:33]} {[%emt 00:00:06]} 9. O-O
{[%clk 01:25:25]} {[%emt 00:00:21]} b6 {[%clk 01:30:20]} {[%emt 00:00:42]} 10.
Rc1 {[%clk 01:20:05]} {[%emt 00:05:50]} Bb7 {[%clk 01:29:54]} {[%emt 00:00:56]}
11. a3 {[%clk 01:17:52]} {[%emt 00:02:44]} Rc8 {[%clk 01:20:51]} {[%emt
00:09:32]} 12. b4 {[%clk 01:15:00]} {[%emt 00:03:21]} a5 {[%clk 01:11:20]}
{[%emt 00:10:03]} 13. Qb3 {[%clk 01:09:05]} {[%emt 00:06:24]} axb4 {[%clk
01:08:11]} {[%emt 00:03:39]} 14. axb4 {[%clk 01:09:01]} {[%emt 00:00:34]} Ne4
{[%clk 00:52:50]} {[%emt 00:15:51]} 15. Nxe4 {[%clk 00:54:55]} {[%emt
00:14:37]} dxe4 {[%clk 00:50:11]} {[%emt 00:03:07]} 16. Bxe7 {[%clk 00:54:46]}
{[%emt 00:00:40]} Qxe7 {[%clk 00:50:37]} {[%emt 00:00:04]} 17. Nd2 {[%clk
00:53:07]} {[%emt 00:02:07]} e5 {[%clk 00:47:30]} {[%emt 00:03:38]} 18. c5
{[%clk 00:44:20]} {[%emt 00:09:16]} exd4 {[%clk 00:45:08]} {[%emt 00:02:52]} 19.
exd4 {[%clk 00:44:28]} {[%emt 00:00:24]} bxc5 {[%clk 00:45:31]} {[%emt
00:00:06]} 20. bxc5 {[%clk 00:42:09]} {[%emt 00:02:49]} Nf6 {[%clk 00:45:43]}
{[%emt 00:00:17]} 21. Rb1 {[%clk 00:37:34]} {[%emt 00:05:03]} Rc7 {[%clk
00:44:39]} {[%emt 00:01:35]} 22. Rfe1 {[%clk 00:35:35]} {[%emt 00:02:29]} Bc8
{[%clk 00:43:50]} {[%emt 00:01:19]} 23. Bc4 {[%clk 00:32:15]} {[%emt 00:03:50]}
Bf5 {[%clk 00:42:54]} {[%emt 00:01:27]} 24. Nf1 {[%clk 00:23:12]} {[%emt
00:09:32]} Re8 {[%clk 00:38:31]} {[%emt 00:04:53]} 25. Ne3 {[%clk 00:22:15]}
{[%emt 00:01:28]} Bg6 {[%clk 00:38:52]} {[%emt 00:00:09]} 26. Qa4 {[%clk
00:17:40]} {[%emt 00:05:05]} Rd8 {[%clk 00:31:11]} {[%emt 00:08:11]} 27. Red1
{[%clk 00:16:03]} {[%emt 00:02:06]} Qd7 {[%clk 00:16:41]} {[%emt 00:15:00]} 28.
Rb6 {[%clk 00:13:58]} {[%emt 00:02:36]} Kh7 {[%clk 00:12:19]} {[%emt 00:04:51]}
29. h3 {[%clk 00:12:31]} {[%emt 00:01:57]} Rdc8 {[%clk 00:12:15]} {[%emt
00:00:34]} 30. Qb3 {[%clk 00:07:03]} {[%emt 00:05:58]} Qe7 {[%clk 00:08:22]}
{[%emt 00:04:23]} 31. Ba6 {[%clk 00:06:29]} {[%emt 00:01:04]} Rd8 {[%clk
00:08:06]} {[%emt 00:00:46]} 32. Rb7 {[%clk 00:04:14]} {[%emt 00:02:45]} Rdd7
{[%clk 00:07:42]} {[%emt 00:00:54]} 33. Rb6 {[%clk 00:04:18]} {[%emt 00:00:27]}
Rd8 {[%clk 00:07:54]} {[%emt 00:00:17]} 34. Bc4 {[%clk 00:02:52]} {[%emt
00:01:56]} Bh5 {[%clk 00:05:31]} {[%emt 00:02:53]} 35. Rd2 {[%clk 00:02:43]}
{[%emt 00:00:39]} Nd7 {[%clk 00:04:50]} {[%emt 00:01:10]} 36. Rb7 {[%clk
00:02:17]} {[%emt 00:01:02]} Nxc5 {[%clk 00:04:18]} {[%emt 00:00:57]} 37. Rxc7
{[%clk 00:02:45]} {[%emt 00:00:06]} Qxc7 {[%clk 00:04:31]} {[%emt 00:00:12]} 38.
Qc2 {[%clk 00:01:43]} {[%emt 00:01:32]} Nd3 {[%clk 00:03:45]} {[%emt 00:01:17]}
39. Bxd3 {[%clk 00:02:05]} {[%emt 00:00:09]} exd3 {[%clk 00:04:13]} {[%emt
00:00:02]} 40. Qxd3 {[%clk 00:02:15]} {[%emt 00:00:20]} Bg6 {[%clk 00:04:26]}
{[%emt 00:00:17]} 41. Qc3 {[%clk 00:00:36]} {[%emt 00:02:10]} 1/2-1/2

[Event "NJSK 2018 Jeugd A"]
[Site "Assen, Netherlands"]
[Date "2018.05.05"]
[Round "7.8"]
[White "Bueno, Mark"]
[Black "Jongste, David"]
[Result "0-1"]
[TimeControl "40/90m+30m+30sec/move"]
[WhiteElo "1999"]
[BlackElo "2092"]

1. e4 {[%clk 01:30:59]} c5 {[%clk 01:30:55]} {[%emt 00:00:15]} 2. Nf3 {[%clk
01:31:26]} {[%emt 00:00:19]} e6 {[%clk 01:31:18]} {[%emt 00:00:26]} 3. d3
{[%clk 01:31:53]} {[%emt 00:00:06]} Nc6 {[%clk 01:31:17]} {[%emt 00:00:46]} 4.
g3 {[%clk 01:32:20]} {[%emt 00:00:05]} d5 {[%clk 01:30:59]} {[%emt 00:00:58]} 5.
Nbd2 {[%clk 01:32:45]} {[%emt 00:00:05]} Nge7 {[%clk 01:29:48]} {[%emt
00:01:54]} 6. Bg2 {[%clk 01:33:12]} {[%emt 00:00:09]} g6 {[%clk 01:29:32]}
{[%emt 00:00:51]} 7. O-O {[%clk 01:33:25]} {[%emt 00:00:15]} Bg7 {[%clk
01:28:59]} {[%emt 00:00:59]} 8. Re1 {[%clk 01:33:37]} {[%emt 00:00:13]} O-O
{[%clk 01:27:56]} {[%emt 00:01:10]} 9. h4 {[%clk 01:31:55]} {[%emt 00:01:06]}
b6 {[%clk 01:24:54]} {[%emt 00:03:32]} 10. Nf1 {[%clk 01:27:53]} {[%emt
00:04:33]} Bb7 {[%clk 01:22:07]} {[%emt 00:03:17]} 11. e5 {[%clk 01:27:24]}
{[%emt 00:00:58]} Qc7 {[%clk 01:21:14]} {[%emt 00:01:23]} 12. Bf4 {[%clk
01:26:50]} {[%emt 00:01:04]} d4 {[%clk 01:18:05]} {[%emt 00:03:39]} 13. Qd2
{[%clk 01:21:56]} {[%emt 00:05:24]} Rfe8 {[%clk 01:12:37]} {[%emt 00:05:58]} 14.
N1h2 {[%clk 01:20:55]} {[%emt 00:01:32]} Nd5 {[%clk 01:11:03]} {[%emt
00:02:04]} 15. Bh6 {[%clk 01:16:02]} {[%emt 00:05:23]} Nxe5 {[%clk 01:02:55]}
{[%emt 00:08:37]} 16. Bxg7 {[%clk 01:15:33]} {[%emt 00:01:00]} Nxf3+ {[%clk
01:03:15]} {[%emt 00:00:09]} 17. Bxf3 {[%clk 01:15:54]} {[%emt 00:00:09]} Kxg7
{[%clk 01:03:38]} {[%emt 00:00:07]} 18. Ng4 {[%clk 01:16:21]} {[%emt 00:00:03]}
f5 {[%clk 00:58:53]} {[%emt 00:05:19]} 19. Qh6+ {[%clk 01:16:38]} {[%emt
00:00:09]} Kh8 {[%clk 00:59:12]} {[%emt 00:00:10]} 20. Ne5 {[%clk 01:11:22]}
{[%emt 00:05:47]} Qg7 {[%clk 00:54:55]} {[%emt 00:04:47]} 21. Qd2 {[%clk
01:10:45]} {[%emt 00:01:07]} Re7 {[%clk 00:51:43]} {[%emt 00:03:41]} 22. c3
{[%clk 01:06:53]} {[%emt 00:04:22]} dxc3 {[%clk 00:48:02]} {[%emt 00:04:11]} 23.
bxc3 {[%clk 01:07:16]} {[%emt 00:00:08]} Rd8 {[%clk 00:43:15]} {[%emt
00:05:17]} 24. d4 {[%clk 01:07:14]} {[%emt 00:00:32]} Nf6 {[%clk 00:39:09]}
{[%emt 00:04:35]} 25. Bxb7 {[%clk 01:05:31]} {[%emt 00:02:13]} Rxb7 {[%clk
00:39:34]} {[%emt 00:00:05]} 26. Qg5 {[%clk 01:00:55]} {[%emt 00:05:06]} Rd5
{[%clk 00:34:10]} {[%emt 00:05:54]} 27. f3 {[%clk 00:35:06]} {[%emt 00:26:22]}
Rc7 {[%clk 00:29:03]} {[%emt 00:05:34]} 28. Nd3 {[%clk 00:32:05]} {[%emt
00:03:31]} h6 {[%clk 00:22:15]} {[%emt 00:07:17]} 29. Qe3 {[%clk 00:31:24]}
{[%emt 00:01:12]} cxd4 {[%clk 00:19:38]} {[%emt 00:03:09]} 30. Qxe6 {[%clk
00:31:05]} {[%emt 00:00:48]} dxc3 {[%clk 00:18:45]} {[%emt 00:01:22]} 31. Nf4
{[%clk 00:30:43]} {[%emt 00:00:52]} Rd8 {[%clk 00:17:27]} {[%emt 00:01:47]} 32.
Qb3 {[%clk 00:22:43]} {[%emt 00:08:33]} Rd2 {[%clk 00:13:52]} {[%emt 00:04:04]}
33. Rac1 {[%clk 00:16:21]} {[%emt 00:06:53]} Rb2 {[%clk 00:08:04]} {[%emt
00:06:18]} 34. Qa3 {[%clk 00:07:48]} {[%emt 00:09:02]} Ne4 {[%clk 00:03:06]}
{[%emt 00:05:28]} 35. Ne2 {[%clk 00:03:43]} {[%emt 00:04:37]} Nxg3 {[%clk
00:01:26]} {[%emt 00:02:11]} 36. Nxg3 {[%clk 00:02:54]} {[%emt 00:01:17]} Qd4+
{[%clk 00:01:50]} {[%emt 00:00:06]} 0-1